Cogmind - Beta 16.1 @@@ ROGUE MODE // 2026.06.17 @ 11:29:08 Player: 0R-LIM Result: Self-destructed Performance ------------- Evolutions (2) 1000 Regions Visited (3) 600 Robots Destroyed (5) 25 Value Destroyed (112) 112 Prototype IDs (0) 0 Alien Tech Used (0) 0 Bonus (0) 0 TOTAL SCORE: 1737 Bonus ------- None Cogmind --------- Core Integrity 466/550 Matter 298/300 Energy 250/250 System Corruption 0% Temperature Cool (0) Movement Rolling (110) Location -8/Materials Parts ------- > --- POWER (1) -------- Ion Engine > --- PROPULSION (4) --- Subdweller Monowheel > --- UTILITY (4) ------ Small Storage Unit Advanced Visual Processing Unit > --- WEAPON (2) ------- (None) > --- INVENTORY (8) ---- Light Ion Engine Advanced Visual Processing Unit Particle Gun Subdweller Beam Cannon Subdweller Machine Gun Subdweller Machine Gun Peak State ------------ > --- POWER ------------ Ion Engine > --- PROPULSION ------- Wheel Compact Wheel Subdweller Monowheel > --- UTILITY ---------- Small Storage Unit Advanced Visual Processing Unit > --- WEAPON ----------- EM Pulse Gun Assault Rifle > --- INVENTORY -------- Light Ion Engine Advanced Visual Processing Unit Particle Gun Subdweller Beam Cannon Subdweller Machine Gun Subdweller Machine Gun [Rating: 12] Favorites ----------- Power Ion Engine Engine Ion Engine Propulsion Compact Wheel Wheel Compact Wheel Utility Small Storage Unit Device Seismic Detector Storage Small Storage Unit Processor Advanced Visual Processing Unit Weapon Assault Rifle Energy Gun EM Pulse Gun Ballistic Gun Assault Rifle Build | -11 -10 -10 -8 ------- Run | Yrd Mat Sub Mat Slots Evolved 4 | . . . 4 Power . | . . . . Propulsion 2 | . . . 2 Utility 2 | . . . 2 Weapon . | . . . . Parts Attached 11 | 7 . 2 2 Power 1 | 1 . . . Engine 1 | 1 . . . Core . | . . . . Reactor . | . . . . Propulsion 5 | 2 . 2 1 Treads . | . . . . Leg . | . . . . Wheel 5 | 2 . 2 1 Hover . | . . . . Flight . | . . . . Utility 3 | 2 . . 1 Device 1 | 1 . . . Storage 1 | 1 . . . Processor 1 | . . . 1 Hackware . | . . . . Protection . | . . . . Artifact . | . . . . Weapon 2 | 2 . . . Energy Gun 1 | 1 . . . Energy Cannon . | . . . . Ballistic Gun 1 | 1 . . . Ballistic Cannon . | . . . . Launcher . | . . . . Special Weapon . | . . . . Impact Weapon . | . . . . Slashing Weapon . | . . . . Piercing Weapon . | . . . . Special Melee Weapon . | . . . . Unidentified Prototypes . | . . . . Parts Lost 6 | . . 2 4 Power . | . . . . Propulsion 3 | . . 1 2 Utility 1 | . . 1 . Weapon 2 | . . . 2 Highest Loss Streak 4 | . . 2 4 To Critical Strikes . | . . . . Average Backups 4 | 1 2 5 5 Power . | . 1 1 1 Propulsion . | . . 1 . Utility . | . . . . Weapon 2 | . 1 3 4 Tool/Special . | . . . . Unused Backups 8 | . 1 1 6 Power 2 | . 1 . 1 Propulsion . | . . . . Utility 1 | . . . 1 Weapon 5 | . . 1 4 Tool/Special . | . . . . Average Slot Usage (%) 91 | . 100 94 63 Engine 13 | . 14 14 9 Wheel 27 | . 28 28 23 Device 8 | . 14 8 . Storage 13 | . 14 14 9 Energy Gun 13 | . 14 14 6 Ballistic Gun 13 | . 14 14 8 Peak Build Rating 12 | 7 7 8 12 Average Rating 7 | 4 7 7 10 On Entrance 5 | . 7 7 8 Avg Prop Armor Cover (%) . | . . . . Naked Turns . | . . . . Heaviest Build 15 | 15 15 15 14 Greatest Support 46 | 26 26 36 46 Greatest Overweight (x) . | . . . . Average Overweight (x) . | . . . . Largest Inventory Capacity 8 | 8 8 8 8 Average Capacity 7 | 7 8 8 8 Most Carried 8 | 2 3 8 6 Average Carried 4 | 1 2 5 5 Final Capacity 8 | 8 8 8 8 Final Carried 6 | 2 3 6 6 Class Distribution -------------------- 100% | Mutant Dominant Class ---------------- Mutant | -10/Materials Mutant | -10/Subcaves Mutant | -8/Materials Resources | -11 -10 -10 -8 ----------- Run | Yrd Mat Sub Mat Matter Collected 349 | 190 26 101 32 Remotely . | . . . . Salvage Created 159 | 17 . 82 60 Parts 18 | 3 . 12 3 Haulers Intercepted . | . . . . Recyclers Shooed . | . . . . Parts Field Recycled . | . . . . Retrieved Matter . | . . . . Parts Self-Destructed 18 | . . 18 . Prevented . | . . . . Parts Restored . | . . . . Kills | -11 -10 -10 -8 ------- Run | Yrd Mat Sub Mat Combat Hostiles Destroyed 4 | . . 3 1 Guns 4 | . . 3 1 Classes Destroyed 4 | 1 . 2 1 Tunneler 1 | 1 . . . Swarmer 2 | . . 2 . Sentry 1 | . . . 1 Subdweller 1 | . . 1 . Best Kill Streak 2 | 1 . 2 1 Combat Bots Only 2 | . . 2 1 Max Kills in Single Turn 1 | 1 . 1 1 Gunslinging . | . . . . Exploded . | . . . . Melee . | . . . . Uniques/NPCs Destroyed . | . . . . Combat | -11 -10 -10 -8 -------- Run | Yrd Mat Sub Mat Hostile Shots Fired 44 | . . 13 31 Missed 12 | . . 4 8 Hits 32 | . . 9 23 Projectile 32 | . . 9 23 Critical Strikes 3 | . . 1 2 Damage Taken 600 | . . 296 304 Core 174 | . . 90 84 Absorbed by Shields . | . . . . Core Remaining (%) 82 | 100 . 64 . Volleys Fired 18 | 2 . 8 8 Largest 2 | 2 . 2 2 Hottest 60 | 60 . 60 60 Shots Fired 32 | 4 . 16 12 Gun 32 | 4 . 16 12 Cannon . | . . . . Launcher . | . . . . Special . | . . . . Kinetic 18 | 2 . 8 8 Thermal . | . . . . Explosive . | . . . . Electromagnetic 14 | 2 . 8 4 Robot Hit Streak 11 | 3 . 3 11 Robot Miss Streak 3 | 1 . 3 1 Penetration Max . | . . . . Secondary Targets . | . . . . Shots Hit Robots 21 | 3 . 8 10 Core Hits 9 | 1 . 4 4 Critical Kills . | . . . . Critical Parts Destroyed . | . . . . Critical Strikes . | . . . . Melee Attacks . | . . . . Impact . | . . . . Slashing . | . . . . Piercing . | . . . . Sneak Attacks . | . . . . Combat Hostiles . | . . . . Follow-up Attacks . | . . . . Damage Inflicted 282 | 40 . 126 116 Guns 282 | 40 . 126 116 Cannons . | . . . . Explosions . | . . . . Melee . | . . . . Ramming . | . . . . Kinetic 176 | 27 . 76 73 Thermal . | . . . . Explosive . | . . . . Electromagnetic 106 | 13 . 50 43 Impact . | . . . . Slashing . | . . . . Piercing . | . . . . Highest Corruption . | . . . . Average Corruption . | . . . . Corruption Purged . | . . . . Corruption Blocked . | . . . . Overload Shots . | . . . . Overflow Damage . | . . . . Projectiles . | . . . . Explosions . | . . . . Melee . | . . . . Knockbacks . | . . . . Impact . | . . . . Kinetic . | . . . . Secondary . | . . . . Self-Inflicted Damage . | . . . . Shots . | . . . . Rammed . | . . . . Targets Rammed . | . . . . Kicked . | . . . . Crushed . | . . . . Highest Temperature 249 | . . 249 3 Average Temperature 121 | . . 147 3 Received Heat Transfer 371 | . . 308 63 Siege Activations . | . . . . Martial Activations . | . . . . Shielding Activations . | . . . . Robots Disrupted . | . . . . Combat Hostiles . | . . . . Robots Corrupted . | . . . . Combat Hostiles . | . . . . Parts Fried . | . . . . Impact Corruptions . | . . . . Robots Melted . | . . . . Combat Hostiles . | . . . . Parts Melted . | . . . . Heat Transferred . | . . . . Parts Sabotaged . | . . . . Parts Stolen . | . . . . Parts Stripped . | . . . . Power Chain Reactions . | . . . . Alert | -11 -10 -10 -8 ------- Run | Yrd Mat Sub Mat Maximum Alert Level . | . . . . Low Security (%) 100 | 100 100 . 100 Level 1 . | . . . . Level 2 . | . . . . Level 3 . | . . . . Level 4 . | . . . . Level 5 . | . . . . High Security . | . . . . Max Security . | . . . . Peak Influence 31 | 5 . . 31 Initial . | . . . . Average 1 | . . . 2 Influence Increases 86 | 5 . 50 31 Destroy 0b10 Robot/C 60 | . . 40 20 Destroy 0b10 Robot/NC 5 | 5 . . . Destroy Leader 20 | . . 10 10 Destroy Structure 1 | . . . 1 Influence Decreases 86 | 5 . 50 31 Time Decay 47 | 5 . 32 10 Lost Part 39 | . . 18 21 Squads Dispatched 2 | . 1 . 1 Investigation 1 | . 1 . . Extermination . | . . . . Reinforcement 1 | . . . 1 Assault . | . . . . Garrison . | . . . . Intercept . | . . . . Searches Triggered . | . . . . Construction Impeded . | . . . . Haulers Reinforced . | . . . . Active Scanning Responses . | . . . . Cargo Convoy Interrupts . | . . . . Stealth | -11 -10 -10 -8 --------- Run | Yrd Mat Sub Mat Distress Signals . | . . . . Communications Jammed . | . . . . Distress Signals . | . . . . Times Spotted 15 | . 2 8 5 Peak Tracking Total 3 | . 2 3 3 Tactical Retreats . | . . . . Traps | -11 -10 -10 -8 ------- Run | Yrd Mat Sub Mat Traps Triggered 3 | . . 3 . Indirectly . | . . . . Trap Hack Attempts . | . . . . Triggered . | . . . . Disarmed . | . . . . Reprogrammed . | . . . . Reused . | . . . . Traps Extracted . | . . . . Installed . | . . . . Triggered . | . . . . Machines | -11 -10 -10 -8 ---------- Run | Yrd Mat Sub Mat Machines Disabled . | . . . . Max in Single Turn . | . . . . Machines Repaired . | . . . . Machines Dismantled . | . . . . Machines Sabotaged . | . . . . Overloaded Fab Kills . | . . . . Hacking | -11 -10 -10 -8 --------- Run | Yrd Mat Sub Mat Machines Accessed 2 | . 2 . . Terminals 2 | . 2 . . Fabricators . | . . . . Repair Stations . | . . . . Recycling Units . | . . . . Scanalyzers . | . . . . Garrison Access . | . . . . Total Hacks 7 | . 7 . . Successful 2 | . 2 . . Failed 5 | . 5 . . Catastrophic 2 | . 2 . . Database Lockouts . | . . . . Manual . | . . . . Terminals 7 | . 7 . . Fabricators . | . . . . Repair Stations . | . . . . Recycling Units . | . . . . Scanalyzers . | . . . . Garrison Access . | . . . . Terminal Hacks 2 | . 2 . . Record 2 | . 2 . . Fabricator Hacks . | . . . . Repair Station Hacks . | . . . . Recycling Unit Hacks . | . . . . Scanalyzer . | . . . . Garrison Access Hacks . | . . . . Unauthorized Hacks . | . . . . Terminals . | . . . . Fabricators . | . . . . Repair Stations . | . . . . Recycling Units . | . . . . Scanalyzers . | . . . . Garrison Access . | . . . . Data Cores Recovered . | . . . . Used . | . . . . Hacking Detections 2 | . 2 . . Full Trace Events 1 | . 1 . . Feedback Events . | . . . . Feedback Blocked . | . . . . Robot Schematics Acquired . | . . . . Robots Built . | . . . . Authchips . | . . . . Time . | . . . . Total Robot Build Rating . | . . . . Part Schematics Acquired . | . . . . Parts Built . | . . . . Authchips . | . . . . Time . | . . . . Total Part Build Rating . | . . . . Part Studies Acquired . | . . . . Parts Repaired . | . . . . Time . | . . . . Parts Recycled . | . . . . Recycled Matter . | . . . . Retrieved Matter . | . . . . Retrieved Components . | . . . . Parts Scanalyzed . | . . . . Part Schematics Acquired . | . . . . Parts Damaged . | . . . . Bothacking | -11 -10 -10 -8 ------------ Run | Yrd Mat Sub Mat Used RIF Installer . | . . . . Robots Hacked . | . . . . Non-combat . | . . . . Combat . | . . . . Robot Hacks Applied . | . . . . Relay Couplers Released . | . . . . Fabnet Peak Effective % . | . . . . Robots Rewired . | . . . . Allies Hacked . | . . . . Hacks Repelled . | . . . . Allies | -11 -10 -10 -8 -------- Run | Yrd Mat Sub Mat Total Allies . | . . . . Largest Group . | . . . . Highest-Rated Group . | . . . . Highest-Rated Ally . | . . . . Total Orders . | . . . . Ally Attacks . | . . . . Total Damage . | . . . . Kills . | . . . . Allies Corrupted . | . . . . Allies Melted . | . . . . Intel | -11 -10 -10 -8 ------- Run | Yrd Mat Sub Mat Active Infowar (turns) 718 | 7 81 555 75 Optics 75 | . . . 75 Seismic 643 | 7 81 555 . Robot Analysis Total . | . . . . Derelict Logs Recovered 1 | . . 1 . Drone Launches . | . . . . Drone Recoveries . | . . . . Exploration | -11 -10 -10 -8 ------------- Run | Yrd Mat Sub Mat Turns Passed 1139 | 66 81 893 99 Spaces Moved 829 | 51 85 658 35 Core 2 | 2 . . . Treads . | . . . . Legs . | . . . . Wheels 827 | 49 85 658 35 Hover . | . . . . Flight . | . . . . Fastest Speed 50 | 50 90 90 96 Average Speed 94 | 88 90 95 96 Slowest Speed 105 | 100 90 105 105 Overloaded Moves . | . . . . Propulsion Burnouts . | . . . . Robots Hopped . | . . . . Potential Cave-ins . | . . . . Cave-ins Triggered . | . . . . Exploration Rate (%) 17 | 3 17 41 7 Regions Visited 3 Branch Regions 1 Pre-discovered Areas . | . . . . Known Exits Taken . | . . . . Unknown Exits Taken 3 | 1 1 1 . Scrap Searched . | . . . . Spaces Dug . | . . . . Terrain Destroyed . | . . . . Melee . | . . . . Projectile . | . . . . AOE . | . . . . Terrain Rammed . | . . . . Walls Destroyed . | . . . . Machines Disabled . | . . . . Actions | -11 -10 -10 -8 --------- Run | Yrd Mat Sub Mat Total 1145 | 64 89 905 87 Wait 275 | 3 2 229 41 Move 826 | 50 84 657 35 Hop . | . . . . Pick Up 11 | 2 2 6 1 Fast Attach 8 | 7 . . 1 Attach 3 | . . 2 1 Detach 1 | . . 1 . Swap . | . . . . Drop 3 | . 1 2 . Fire 18 | 2 . 8 8 Melee . | . . . . Ram . | . . . . Kick . | . . . . Crush . | . . . . Escape Stasis . | . . . . Rewire . | . . . . Trap . | . . . . Miscellaneous . | . . . . Route ------- -11/Scrapyard -10/Materials (discovered 2 exits: [*Min] / [*Sub]) -10/Subcaves (discovered 2 exits: [*Mat] / [*Scr]) -8/Materials History --------- Turn | Location | Event 21 | -11/Scrapyard | Discovered new exit (range 16) 67 | -11/Scrapyard | Entered Materials 68 | -10/Materials | Met a group of wandering Federalists 130 | -10/Materials | Discovered new exit (range 8) 144 | -10/Materials | Discovered new exit (range 5) 148 | -10/Materials | Entered Subcaves 148 | -10/Subcaves | Accompanied by 1 ally 149 | -10/Subcaves | Continued accompanying wandering Federalists (4) 149 | -10/Subcaves | Approached by a straggling Scientist 314 | -10/Subcaves | Build established: Mutant 335 | -10/Subcaves | Shifting Twisted Machinery released Sub. Machine Gun 439 | -10/Subcaves | Wandering Federalist uncovered a shortcut to Scraptown 557 | -10/Subcaves | Ambushed by Subdweller buried in earth 646 | -10/Subcaves | A swath of the cavern ceiling suddenly collapsed 769 | -10/Subcaves | Learned Materials garrison access intel 802 | -10/Subcaves | Discovered new exit (range 15) 1041 | -10/Subcaves | Entered Materials 1041 | -8/Materials | Evolved 4 slots: Propulsion x2, Utility x2 1042 | -8/Materials | Loaded intel: 1 garrison access location 1140 | -8/Materials | Self-destructed Last Messages --------------- 01056_ K-01 Serf collects debris. 01058_ O-16 Technician: "IFF HANDSHAKE FAILED. SECURING TERMINAL." 01061_ K-01 Serf collects debris. 01065_ Acquired Adv. Visual Processing Unit. 01068_ ALERT: Hostiles spotted, dispatching reinforcements to Terminal M007. 01068_ K-01 Serf collects debris. 01100_ Matter Filter disabled. 01109_ Y-45 Defender destroyed. 01114_ Acquired 32 matter. 01114_ Slug penetrates Wall. 01114_ EM Pulse Gun destroyed. 01116_ Wheel destroyed. 01128_ Slug penetrates Wall. 01137_ Wall collapses. 01138_ Assault Rifle destroyed. 01138_ Penetrated by Slug. 01138_ Com. Wheel destroyed. Map ----- +----------------------------------------------------+ | | | | | | | | | ?????????????????????????????????????????????????? | | ?????????????????????????????????????????????????? | | ?????????????????????????????????????????????????? | | ?????????????????????????????????????????????????? | | ?????????????????????????????????????????????????? | | ?????????????????##########??????????????????????? | | ?????????????##### #??????????????????????? | | ?????????????# # #??????????????????????? | | ?????????????# # #??????????????????????? | | ?????????????# # #??????????????????????? | | ?????????????# + #??????????????????????? | | ?????????????# # #??????????????????????? | | ?????????????# # #######????????????????? | | ?????????????# # + #????????????????? | | ?????????????# # ### #????????????????? | | ?????????????# ##########?# #????????????????? | | ?????????????# # #?# #????????????????? | | ?????????????# # """"" ### #????????????????? | | ????????????? # """"" # #####+##?????????? | | ????????????? # """"" #u #######???? | | ????????????? # """"% [g% ??? | | ????????????###### """"% @; h ###???????? | | ?????????????????# """"" # h #????????? | | ?????????????????# """"" ## !! #????????? | | ?????????????????# ## !! #????????? | | ?????????????????########### !!! #????????? | | ???????????????????????????# #????????? | | ???????????????????????????# #????????? | | ???????????????????????????# #????????? | | ???????????????????????????# "T" #????????? | | ???????????????????????????# #????????? | | ???????????????????????????# #????????? | | ???????????????????????????# ######+###????????? | | ???????????????????????????# #?????????????????? | | ???????????????????????????# #?????????????????? | | ???????????????????????????# #?????????????????? | | ???????????????????????????# #?????????????????? | | ??????????????????????????? ?????????????????? | | ??????????????????????????? ?????????????????? | | ??????????????????????????? ?????????????????? | | ??????????????????????????? ?????????????????? | | ??????????????????????????? ?????????????????? | | ??????????????????????????######?????????????????? | | ?????????????????????????????????????????????????? | | ?????????????????????????????????????????????????? | | ?????????????????????????????????????????????????? | +----------------------------------------------------+ Best States ------------- Heat Dissipation 31 Energy Generation 10 Energy Capacity 250 Matter Stores 300 Matter Capacity 300 Sight Range 20 Terrain Scan Density 10 Evasion (%) 42 Item Schematics ----------------- None Robot Schematics ------------------ None Fabricated ------------ Nothing Repaired ---------- Nothing Studied --------- None Alien Tech Used ----------------- None Achievements -------------- Do Not Disturb Strength In Numbers Challenges ------------ None Game ------ Seed PotentialRecyclingFocus Manual? 0 Play Time 00:14:54 Cumulative 13.4 hours Start 2026.06.17 @ 11:14:28 End 2026.06.17 @ 11:29:08 Sessions 1 Manual Loads 0 Difficulty Rogue Special Mode None Game No. 17 Rogue 13 Adventurer 4 Explorer 0 Win Type - Total 0 Types 0/0/0/0/0/0/0/0/0/0 Lore% 3 Gallery% 9 Achievement% 11 Wizard Run 0 Options --------- Layout 2 ASCII 0 Keyboard 1 Movement Numpad Keybinds 0 Fullscreen 1 Font 24/Smallcaps Map View 50x44 Zoom Use 8% Tactical HUD 1 Map Filters NONE Filters NONE Steam 1 RUN: a39af824-3af6-4efd-b7e0-9db62adbed98